bitfinex/quotes_SOLUSD_20250518
["timestamp","ask_amount","ask_price","bid_price","bid_amount"]
[1747534238228,26.77012817,167.35,167.3,3.41958339]
[1747534239325,26.77012817,167.35,167.31,3.41958339]
[1747534240807,26.77012817,167.35,167.29,5.97741787]
[1747534242243,26.77012817,167.35,167.3,3.41740085]
[1747534243707,20.79458518,167.35,167.3,9.39466793]
[1747534244637,20.79458518,167.35,167.31,3.41740085]
[1747534245833,20.79458518,167.35,167.31,9.39415201]
[1747534246036,20.79458518,167.35,167.32,3.41740085]
[1747534247033,20.79458518,167.35,167.33,3.41740085]
[1747534247240,26.77022443,167.35,167.33,3.41740085]
[1747534247540,20.79458518,167.35,167.33,3.41740085]
[1747534248333,20.79458518,167.35,167.31,5.97686288]
[1747534250042,20.79458518,167.35,167.32,3.41227021]
[1747534250641,20.79458518,167.35,167.33,3.41227021]
[1747534251151,26.77017554,167.35,167.33,3.41227021]
[1747534251731,20.79458518,167.35,167.33,3.41227021]
[1747534252126,20.79458518,167.35,167.3,5.9771421]
[1747534253348,20.79458518,167.35,167.31,3.41113164]
[1747534253549,20.79458518,167.35,167.31,9.38800296]
[1747534254844,20.79458518,167.35,167.32,3.41113164]
[1747534255444,20.79458518,167.35,167.32,9.38760183]
[1747534256151,20.79458518,167.35,167.33,3.41113164]
[1747534257047,10.29042732,167.44,167.34,63.36964886]
[1747534257646,5.97264528,167.43,167.35,5.97550044]
[1747534258350,5.97264528,167.43,167.35,9.38663208]
[1747534259550,5.97264528,167.43,167.35,12.33293784]
[1747534259747,5.97264528,167.43,167.36,9.38624367]
[1747534260154,5.97264528,167.43,167.36,3.41113164]
[1747534260739,16.2630726,167.43,167.36,3.41113164]
[1747534261557,16.2630726,167.43,167.35,5.97537888]
[1747534264159,10.29042732,167.42,167.34,2.97748108]
[1747534264344,10.29042732,167.38,167.33,22.93334496]
[1747534264541,10.29042732,167.37,167.33,4.23334496]
[1747534264932,10.29042732,167.37,167.32,3.41037686]
[1747534265955,5.9751434,167.36,167.32,3.41037686]
[1747534266148,5.9751434,167.36,167.31,18.7]
[1747534269560,5.9751434,167.36,167.32,3.41241371]
[1747534271265,5.9751434,167.36,167.31,18.7]
[1747534274245,5.9751434,167.36,167.32,3.41495956]
[1747534275764,5.9751434,167.36,167.31,18.7]
[1747534278275,5.9747864,167.37,167.31,18.7]
[1747534278973,5.9747864,167.37,167.32,3.41670467]
[1747534279374,16.26521372,167.37,167.32,3.41670467]
[1747534280151,16.26521372,167.37,167.31,18.7]
[1747534281771,42.26521372,167.37,167.3,4.23334496]
[1747534281955,10.29042732,167.34,167.3,4.23334496]
[1747534282277,10.29042732,167.33,167.3,3.41613189]
[1747534282572,5.97657183,167.32,167.3,3.41613189]
[1747534283259,5.97657183,167.32,167.28,22.93334496]
[1747534283770,10.29042732,167.34,167.28,28.91132204]
[1747534283969,16.26557072,167.36,167.28,28.91132204]
[1747534284350,5.9751434,167.36,167.28,28.91132204]
[1747534284873,31.97484106,167.37,167.29,18.64964886]
[1747534285077,5.97484106,167.37,167.3,6.1551]
[1747534285952,5.97484106,167.37,167.31,5.97692905]
[1747534286679,5.97484106,167.37,167.32,3.41601462]
[1747534288074,5.97484106,167.37,167.33,3.41601462]
[1747534289881,5.97484106,167.37,167.31,5.97692905]
[1747534291468,5.97451049,167.38,167.31,5.97692905]
[1747534291854,5.97451049,167.38,167.32,3.4151301]
[1747534292778,5.97451049,167.38,167.33,3.4151301]
[1747534294101,16.26493781,167.38,167.33,3.4151301]
[1747534294390,10.29042732,167.37,167.31,5.97682151]
[1747534295393,16.26554843,167.37,167.32,3.41478371]
[1747534296980,16.26554843,167.37,167.33,3.41478371]
[1747534298395,16.26554843,167.37,167.31,5.97682151]
[1747534299896,16.26554843,167.37,167.32,3.41369202]
[1747534301399,16.26554843,167.37,167.33,3.41369202]
[1747534301693,16.26485676,167.38,167.33,3.41369202]
[1747534302394,10.29042732,167.37,167.33,3.41369202]
[1747534302771,5.97442944,167.38,167.33,3.41369202]
[1747534302772,16.26485676,167.38,167.33,3.41369202]
[1747534303481,16.26485676,167.38,167.31,9.39059668]
[1747534305097,16.26485676,167.38,167.32,3.41369202]
[1747534305299,12.55425627,167.38,167.32,3.41369202]
[1747534305599,138.2,167.41,167.34,18.64964886]
[1747534305778,32.57982683,167.44,167.35,25.1459]
[1747534306290,12.55175874,167.45,167.36,18.64964886]
[1747534306899,12.55175874,167.45,167.36,22.06334088]
[1747534307304,12.55175874,167.45,167.37,5.9747864]
[1747534307802,12.55175874,167.45,167.38,3.41369202]
[1747534308687,5.97193191,167.45,167.38,9.38785507]
[1747534309405,5.97193191,167.45,167.39,3.41369202]
[1747534311102,5.97193191,167.45,167.37,5.9747864]
[1747534311903,5.97193191,167.45,167.38,3.40694837]
[1747534313000,5.97193191,167.45,167.39,3.40694837]
[1747534314489,5.97193191,167.45,167.37,5.9747864]
[1747534315402,16.2438839,167.45,167.37,5.9747864]
[1747534315605,16.2438839,167.45,167.38,3.40389911]
[1747534316702,10.27195199,167.44,167.38,3.40389911]
[1747534316910,10.27195199,167.43,167.36,18.68]
[1747534317708,10.27195199,167.42,167.36,18.68]
[1747534318226,20.9017617,167.45,167.36,18.68]
[1747534318227,10.27195199,167.43,167.36,18.68]
[1747534318390,10.27195199,167.44,167.36,24.65492893]
[1747534318809,16.2438839,167.45,167.37,3.40396064]
[1747534319293,60.92364425,167.46,167.38,18.64964886]
[1747534319738,60.92364425,167.46,167.39,5.97407252]
[1747534320443,50.65169226,167.46,167.39,7.62587252]
[1747534320935,31.97169226,167.46,167.39,7.62587252]
[1747534321231,31.97169226,167.46,167.4,3.40396064]
[1747534322438,31.97169226,167.46,167.39,7.62587252]
[1747534323437,10.27195199,167.45,167.39,1.6518]
[1747534324433,5.97228858,167.44,167.39,1.6518]
[1747534326215,5.97204417,167.45,167.39,7.6258134]
[1747534326426,20.90187396,167.45,167.35,10.69924496]
[1747534326629,10.27195199,167.41,167.35,12.35104496]
[1747534326935,10.27195199,167.4,167.35,12.35104496]
[1747534327306,10.27195199,167.4,167.35,8.1177]
[1747534328617,5.97407252,167.39,167.35,8.1177]
[1747534330332,5.97407252,167.39,167.32,30.23334496]
[1747534330543,16.24602451,167.39,167.33,3.40437095]
[1747534331818,10.27195199,167.37,167.31,12.52904496]
[1747534332251,20.90925383,167.39,167.31,12.52904496]
[1747534332252,10.27195199,167.36,167.31,12.52904496]
[1747534332418,5.97550044,167.35,167.31,12.52904496]
[1747534333254,5.97550044,167.35,167.31,5.88514496]
[1747534333454,5.97550044,167.35,167.31,1.6518]
[1747534334459,5.97550044,167.35,167.27,33.60532397]
[1747534334650,10.27195199,167.34,167.28,18.68]
[1747534334959,10.27195199,167.34,167.29,3.40737645]
[1747534335753,5.97621466,167.33,167.29,3.40737645]
[1747534336758,5.97621466,167.33,167.28,18.68]
[1747534337434,5.97621466,167.33,167.27,7.6939]
[1747534337639,16.24816665,167.33,167.27,7.6939]
[1747534337830,10.27195199,167.32,167.25,22.89334496]
[1747534338035,10.27195199,167.32,167.26,3.40439028]
[1747534338294,16.24816665,167.33,167.26,3.40439028]
[1747534338631,5.97621466,167.33,167.26,3.40439028]
[1747534338964,16.24816665,167.33,167.26,3.40439028]
[1747534339330,16.24816665,167.33,167.26,9.38303097]
[1747534339747,16.24816665,167.33,167.27,3.40439028]
[1747534340665,5.97621466,167.33,167.27,3.40439028]
[1747534340868,5.97621466,167.33,167.26,5.97864069]
[1747534342062,10.27195199,167.3,167.24,4.23334496]
[1747534343280,10.27195199,167.29,167.24,4.23334496]
[1747534343643,10.27195199,167.3,167.23,1.6075]
[1747534344351,5.97764361,167.29,167.23,1.6075]
[1747534353082,5.97692905,167.31,167.23,7.58712523]
[1747534353260,16.24888104,167.31,167.23,7.58712523]
[1747534357002,5.97692905,167.31,167.23,7.58712523]
[1747534357359,5.97692905,167.31,167.24,18.68]
[1747534357360,16.24888104,167.31,167.24,18.68]
[1747534358486,16.24888104,167.31,167.24,24.65943073]
[1747534361380,16.24888104,167.31,167.24,24.65941929]
[1747534361579,16.24888104,167.31,167.24,18.68]
[1747534362664,16.24888104,167.31,167.24,24.65938114]
[1747534366395,16.2495956,167.29,167.23,1.6075]
[1747534370100,5.97835834,167.27,167.23,1.6075]
[1747534370274,5.97835834,167.27,167.22,6.4707]
[1747534371896,5.97835834,167.27,167.23,3.40679311]
[1747534374024,5.97800095,167.28,167.22,6.4707]
[1747534377177,5.97800095,167.28,167.23,3.41588423]
[1747534377379,12.56498117,167.29,167.23,3.41588423]
[1747534378398,12.56498117,167.29,167.24,3.41588423]
[1747534380705,12.56498117,167.29,167.23,3.41588423]
[1747534381398,5.97764361,167.29,167.24,3.41588423]
[1747534382701,5.97764361,167.29,167.25,3.41588423]
[1747534383701,5.97764361,167.29,167.24,3.41588423]
[1747534385209,5.97764361,167.29,167.25,3.41588423]
[1747534386598,5.97764361,167.29,167.26,3.41588423]
[1747534388587,5.97764361,167.29,167.24,3.41588423]
[1747534389384,5.97764361,167.29,167.25,3.41588423]
[1747534391011,5.97764361,167.29,167.26,3.41588423]
[1747534392913,5.97764361,167.29,167.24,3.41588423]
[1747534393098,12.56498117,167.29,167.24,3.41588423]
[1747534394612,12.56498117,167.29,167.25,3.41588423]
[1747534396389,12.56498117,167.29,167.23,4.23334496]
[1747534396390,12.56498117,167.29,167.26,3.41588423]
[1747534398417,12.56498117,167.29,167.24,3.41588423]
[1747534399920,12.56498117,167.29,167.25,3.41588423]
[1747534401714,12.56498117,167.29,167.26,3.41588423]
[1747534402724,12.56498117,167.29,167.24,3.41588423]
[1747534402909,31.97733035,167.3,167.25,1.6348]
[1747534403114,6.58733756,167.29,167.24,3.41588423]
[1747534404223,38.56466791,167.3,167.25,3.41588423]
[1747534404822,53.50788369,167.3,167.25,3.41588423]
[1747534406121,53.50788369,167.3,167.26,3.41588423]
[1747534407820,53.50788369,167.3,167.25,3.41588423]
[1747534408124,156.86,167.32,167.25,9.39493879]
[1747534408125,5.9770585,167.31,167.25,9.39493879]
[1747534408296,5.9770585,167.31,167.26,1.6456]
[1747534409323,5.9770585,167.31,167.27,3.41588423]
[1747534409707,170.17669726,167.32,167.27,3.41588423]
[1747534411420,170.17669726,167.32,167.28,3.41588423]
[1747534411642,176.76403482,167.32,167.28,3.41588423]
[1747534412825,176.76403482,167.32,167.27,3.41588423]
[1747534414422,144.17669726,167.32,167.27,3.41588423]
[1747534414623,144.17669726,167.32,167.28,3.41588423]
[1747534416232,150.76403482,167.32,167.27,3.41588423]
[1747534418337,6.58733756,167.31,167.27,3.41588423]
[1747534419020,150.76403482,167.32,167.27,3.41588423]
[1747534425745,5.97556834,167.35,167.27,34.29500978]
[1747534426114,31.22260025,167.36,167.27,34.29500978]
[1747534426827,31.22260025,167.36,167.28,7.64922919]
[1747534427541,31.22260025,167.36,167.29,5.97764361]
[1747534427731,176.76220643,167.37,167.3,3.41588423]
[1747534427918,144.17486887,167.37,167.3,3.41588423]
[1747534428246,138.2,167.37,167.3,3.41588423]
[1747534429036,138.2,167.37,167.31,3.41588423]
[1747534429837,138.2,167.37,167.32,5.97657183]
[1747534430039,144.17484223,167.37,167.31,9.39280754]
[1747534430344,150.76217979,167.37,167.31,9.39280754]
[1747534430517,150.76217979,167.37,167.32,3.41588423]
[1747534431440,150.76217979,167.37,167.3,5.97728631]
[1747534432621,150.76217979,167.37,167.31,9.38085386]
[1747534435147,150.76217979,167.37,167.32,3.40400829]
[1747534436052,150.76217979,167.37,167.32,9.38054022]
[1747534436549,150.76217979,167.37,167.32,5.97653193]
[1747534437151,150.76217979,167.37,167.29,24.62729247]
[1747534437951,150.76217979,167.37,167.3,3.4000427]
[1747534438554,144.78733756,167.37,167.31,5.97692905]
[1747534438755,138.2,167.37,167.31,5.97692905]
[1747534439053,138.2,167.37,167.32,3.4000427]
[1747534440358,138.2,167.37,167.31,5.97692905]
[1747534440549,12.04882083,167.38,167.32,18.64964886]
[1747534440854,12.04882083,167.38,167.33,18.64]
[1747534442842,12.04882083,167.38,167.33,24.61604229]
[1747534447966,24.61060944,167.38,167.31,1.6497]
[1747534448151,6.58733756,167.37,167.31,1.6497]
[1747534448350,6.58733756,167.37,167.3,22.87334496]
[1747534449065,6.58733756,167.37,167.3,18.64]
[1747534449653,5.9751434,167.36,167.3,18.64]
[1747534450149,6.58733756,167.35,167.29,18.64]
[1747534451565,6.58733756,167.35,167.28,12.46714356]
[1747534451754,5.97585753,167.34,167.28,31.10714356]
[1747534452375,5.97585753,167.34,167.29,3.40005256]
[1747534454358,5.97585753,167.34,167.3,3.40005256]
[1747534455372,5.97585753,167.34,167.29,3.40005256]
[1747534456273,5.97585753,167.34,167.29,9.37767212]
[1747534457466,18.63615839,167.38,167.3,3.40005256]
[1747534457667,12.04882083,167.38,167.3,3.40005256]
[1747534458401,5.97513705,167.37,167.31,5.97692905]
[1747534458541,18.02336991,167.38,167.31,5.97692905]
[1747534458750,18.02336991,167.38,167.32,3.40005256]
[1747534459568,18.02336991,167.38,167.32,9.37645141]
[1747534459774,12.04882083,167.38,167.32,9.37645141]
[1747534460470,12.04882083,167.38,167.33,3.40005256]
[1747534460950,12.04882083,167.38,167.34,5.97585753]
[1747534461373,12.04882083,167.38,167.33,9.3761511]
[1747534461675,18.02337524,167.38,167.33,9.3761511]
[1747534461875,18.02337524,167.38,167.33,5.97609854]
[1747534463181,18.02337524,167.38,167.32,5.97657183]
[1747534464868,12.04882083,167.38,167.33,3.40174019]
[1747534465770,12.04882083,167.38,167.33,9.37788438]
[1747534466778,12.04882083,167.38,167.34,3.40174019]
[1747534469354,12.04882083,167.38,167.34,9.37750986]
[1747534470376,12.04882083,167.38,167.35,3.40174019]
[1747534476879,12.04882083,167.38,167.35,9.37720245]
[1747534478091,12.04882083,167.38,167.36,3.40174019]
[1747534480074,12.04882083,167.38,167.35,3.40174019]
[1747534483180,18.02341692,167.38,167.35,3.40174019]
[1747534483684,12.04882083,167.38,167.35,3.40174019]
[1747534483859,138.2,167.4,167.35,9.37717269]
[1747534484565,138.2,167.4,167.36,18.64964886]
[1747534484879,138.2,167.4,167.36,22.05138905]
[1747534485253,5.97300721,167.42,167.36,22.05138905]
[1747534486376,5.97264528,167.43,167.37,3.40174019]
[1747534487157,5.97264528,167.43,167.37,9.3765073]
[1747534488093,5.97264528,167.43,167.38,3.40174019]
[1747534489582,5.97264528,167.43,167.39,3.40174019]
[1747534491198,5.97264528,167.43,167.37,5.97476711]
[1747534492880,5.97264528,167.43,167.38,3.3975372]
[1747534493066,5.97193191,167.45,167.38,9.37193332]
[1747534493272,6.58733756,167.44,167.38,9.37193332]
[1747534493462,12.55926947,167.45,167.38,9.37193332]
[1747534494179,12.55926947,167.45,167.39,3.3975372]
[1747534495484,12.55926947,167.45,167.37,5.9747864]
[1747534495684,6.58733756,167.44,167.37,5.9747864]
[1747534496683,5.97264528,167.43,167.38,3.39636497]
[1747534497188,5.97193191,167.45,167.39,18.64964886]
[1747534497389,12.5590238,167.46,167.4,18.62]
[1747534497568,12.5590238,167.46,167.4,21.67571012]
[1747534498174,5.97168624,167.46,167.4,21.67571012]
[1747534500369,5.97168624,167.46,167.4,27.64929994]
[1747534500572,5.97168624,167.46,167.41,3.39377915]
[1747534501066,12.5590238,167.46,167.41,3.39377915]
[1747534501266,6.58733756,167.44,167.41,3.39377915]
[1747534502390,6.58733756,167.44,167.38,22.85334496]
[1747534502573,20.90062449,167.46,167.38,22.85334496]
[1747534502884,6.58733756,167.44,167.38,22.85334496]
[1747534503084,6.58733756,167.46,167.38,28.82762684]
[1747534503788,5.97121872,167.47,167.39,18.64964886]
[1747534503970,12.55855628,167.47,167.39,18.64964886]
[1747534504492,12.55855628,167.47,167.4,9.36745219]
[1747534504788,12.55855628,167.47,167.4,12.41062761]
[1747534505795,12.55855628,167.47,167.4,9.01689107]
[1747534507595,6.58733756,167.44,167.37,4.23334496]
[1747534507774,6.58733756,167.43,167.38,18.62]
[1747534507976,5.97300203,167.42,167.38,18.62]
[1747534511596,31.18027404,167.42,167.35,4.23334496]
[1747534511899,10.27476694,167.41,167.35,7.63164667]
[1747534512195,10.27476694,167.4,167.35,7.63164667]
[1747534512608,5.97407252,167.39,167.35,7.63164667]
[1747534513298,5.97407252,167.39,167.35,3.39830171]
[1747534514478,16.24850475,167.4,167.35,3.39830171]
[1747534514782,16.24850475,167.4,167.36,3.39830171]
[1747534515973,16.24850475,167.4,167.34,24.59576083]
[1747534515974,16.24850475,167.4,167.35,3.39830171]
[1747534516496,16.24821459,167.41,167.35,9.37379971]
[1747534517796,16.24821459,167.41,167.36,3.39830171]
[1747534519399,5.97344765,167.41,167.36,3.39830171]
[1747534519606,16.24821459,167.41,167.36,3.39830171]
[1747534519806,16.24821459,167.41,167.35,3.39830171]
[1747534521305,16.24821459,167.41,167.35,9.37368047]
[1747534521701,5.97344765,167.41,167.35,9.37368047]
[1747534522388,16.24787992,167.42,167.35,9.37368047]
[1747534522603,16.24787992,167.42,167.36,3.39830171]
[1747534522604,5.97311298,167.42,167.36,3.39830171]
[1747534522903,5.97311298,167.42,167.37,5.9747864]
[1747534523906,5.97311298,167.42,167.36,3.39830171]
[1747534523907,5.97311298,167.42,167.35,24.6251493]
[1747534524502,16.24787992,167.42,167.34,27.59346008]
[1747534524699,5.97311298,167.42,167.34,27.59346008]
[1747534525001,16.24787992,167.42,167.34,27.59346008]
[1747534525204,16.24787992,167.42,167.35,3.4008899]
[1747534525405,10.27476694,167.41,167.35,3.4008899]
[1747534526102,5.97371565,167.4,167.35,3.4008899]
[1747534526500,5.97371565,167.4,167.36,3.4008899]
[1747534528605,5.97371565,167.4,167.37,3.4008899]
[1747534529608,10.27476694,167.42,167.37,3.4008899]
[1747534529783,5.97264528,167.43,167.37,3.4008899]
[1747534529981,16.24741222,167.43,167.36,5.97513848]
[1747534531204,16.24741222,167.43,167.35,5.97544241]
[1747534531391,10.27476694,167.41,167.34,25.85106986]
[1747534531701,10.27476694,167.37,167.34,4.23334496]
[1747534532506,10.27476694,167.38,167.34,4.23334496]
[1747534533706,42.24848259,167.4,167.34,4.23334496]
[1747534534009,5.97371565,167.4,167.34,10.20915256]
[1747534534807,5.97371565,167.4,167.34,4.23334496]
[1747534534997,5.97371565,167.4,167.35,3.40291073]
[1747534537010,5.97371565,167.4,167.36,3.40291073]
[1747534538195,5.97371565,167.4,167.35,5.97536115]
[1747534538805,5.97371565,167.4,167.34,1.5592]
[1747534539812,5.97331232,167.42,167.35,3.39692519]
[1747534540691,5.97331232,167.42,167.35,9.37215116]
[1747534540885,16.2475374,167.43,167.35,9.37215116]
[1747534541090,16.2475374,167.43,167.36,21.99692519]
[1747534542213,5.97277046,167.43,167.37,3.39692519]
[1747534544100,5.97277046,167.43,167.38,3.39692519]
[1747534545220,5.97277046,167.43,167.37,5.97470144]
[1747534548220,10.27476694,167.42,167.36,18.6]
[1747534548399,10.27476694,167.41,167.36,18.6]
[1747534548791,10.27476694,167.41,167.37,3.39368116]
[1747534549524,5.97371565,167.4,167.37,3.39368116]
[1747534550128,5.97371565,167.4,167.36,18.6]
[1747534550796,10.27476694,167.41,167.36,18.6]
[1747534551701,10.27476694,167.41,167.35,18.6]
[1747534552123,5.97371565,167.4,167.35,18.6]
[1747534552716,5.97371565,167.4,167.36,3.39597755]
[1747534554021,5.97371565,167.4,167.37,3.39597755]
[1747534555427,5.97371565,167.4,167.36,3.39597755]
[1747534556827,5.97335881,167.41,167.37,3.39597755]
[1747534558222,5.97335881,167.41,167.36,3.39597755]
[1747534559828,5.97335881,167.41,167.37,3.39597755]
[1747534560002,5.97300203,167.42,167.37,3.39597755]
[1747534564723,12.54904674,167.42,167.37,3.39597755]
[1747534566109,6.57604471,167.41,167.37,3.39597755]
[1747534566512,27.48155181,167.42,167.37,3.39597755]
[1747534566936,27.48155181,167.42,167.36,3.39597755]
[1747534567433,6.57604471,167.41,167.36,3.39597755]
[1747534568740,5.97371565,167.4,167.36,3.39597755]
[1747534570437,6.57604471,167.39,167.36,3.39597755]
[1747534570618,6.57604471,167.37,167.36,3.39597755]
[1747534571427,6.57604471,167.39,167.36,3.39597755]
[1747534571738,6.57604471,167.39,167.34,4.23334496]
[1747534572941,5.97442944,167.38,167.34,4.23334496]
[1747534573325,5.97442944,167.38,167.32,3.39597755]
[1747534574724,12.55047415,167.38,167.32,3.39597755]
[1747534579143,6.57604471,167.39,167.32,3.39597755]
[1747534580140,5.97442944,167.38,167.32,3.39597755]
[1747534584043,5.97442944,167.38,167.32,21.99597755]
[1747534584340,5.97442944,167.38,167.32,18.6]
[1747534585722,5.97371565,167.4,167.32,24.57643432]
[1747534585921,5.97371565,167.4,167.33,3.39597755]
[1747534587131,5.97371565,167.4,167.33,9.37198453]
[1747534587331,5.97342665,167.41,167.35,1.5014]
[1747534588034,5.97342665,167.41,167.36,3.39597755]
[1747534588448,5.97300203,167.42,167.36,3.39597755]
[1747534589246,5.97300203,167.42,167.37,3.39597755]
[1747534590749,5.97300203,167.42,167.35,7.47665276]
[1747534591648,5.97300203,167.42,167.36,3.39167222]
[1747534593476,5.97300203,167.42,167.37,3.39167222]
[1747534593652,12.54904674,167.42,167.37,3.39167222]
[1747534594729,12.54904674,167.42,167.36,3.39167222]
[1747534597632,5.97300203,167.42,167.36,9.36676658]
[1747534597969,5.97300203,167.42,167.37,3.39167222]
[1747534599455,5.97300203,167.42,167.38,3.39167222]
[1747534601059,5.97300203,167.42,167.35,11.71019229]
[1747534602258,5.97300203,167.42,167.36,3.39014304]
[1747534602953,5.97300203,167.42,167.36,9.36528068]
[1747534603660,5.97300203,167.42,167.37,3.39014304]
[1747534605238,5.97300203,167.42,167.38,3.39014304]
[1747534606439,5.97300203,167.42,167.35,5.73474496]
[1747534606642,12.54904674,167.42,167.35,5.73474496]
[1747534607560,12.54904674,167.42,167.36,3.39046043]
[1747534608073,5.97300203,167.42,167.36,3.39046043]
[1747534608943,5.97300203,167.42,167.37,3.39046043]
[1747534610065,5.97300203,167.42,167.35,7.47679826]
[1747534611166,5.97300203,167.42,167.36,3.38944475]
[1747534611464,5.97263806,167.44,167.37,18.64964886]
[1747534611645,5.97263806,167.44,167.38,18.58]
[1747534614069,5.97263806,167.44,167.39,3.3878084]
[1747534615370,5.97263806,167.44,167.38,18.58]
[1747534616252,6.57604471,167.43,167.38,18.58]
[1747534616648,6.57604471,167.42,167.38,18.58]
[1747534617159,6.57604471,167.41,167.38,18.58]
[1747534618357,5.97371565,167.4,167.38,18.58]
[1747534618964,5.97371565,167.4,167.35,1.5014]
[1747534619564,12.54976036,167.4,167.35,1.5014]
[1747534622072,6.57604471,167.39,167.34,6.3097]
[1747534622954,6.57604471,167.38,167.32,22.81334496]
[1747534623154,6.57604471,167.37,167.32,4.23334496]
[1747534623353,6.57604471,167.37,167.32,7.62569761]
[1747534623773,6.57604471,167.36,167.32,7.62569761]
[1747534625077,5.97550044,167.35,167.32,3.39235265]
[1747534626679,5.97550044,167.35,167.31,20.2447]
[1747534627278,5.97550044,167.35,167.31,1.6647]
[1747534627589,6.57604471,167.32,167.29,4.23334496]
[1747534627757,6.57604471,167.3,167.29,4.23334496]
[1747534628669,6.57604471,167.3,167.25,3.3955755]
[1747534629062,32.57604471,167.33,167.25,3.3955755]
[1747534629256,154.46143452,167.35,167.28,18.64964886]
[1747534629479,5.97550044,167.35,167.28,18.64964886]
[1747534630084,5.97550044,167.35,167.29,3.3955755]
[1747534630578,16.26143452,167.35,167.29,3.3955755]
[1747534631579,16.26143452,167.35,167.28,18.64964886]
[1747534631971,10.28593408,167.33,167.27,6.5346]
[1747534632485,10.28593408,167.32,167.27,6.5346]
[1747534632683,10.28593408,167.33,167.27,6.5346]
[1747534633581,5.97657183,167.32,167.27,6.5346]
[1747534633776,16.26250591,167.32,167.27,6.5346]
[1747534634082,16.26250591,167.32,167.26,18.58]
[1747534636981,10.28593408,167.31,167.26,18.58]
[1747534638775,5.97728631,167.3,167.26,18.58]
[1747534638979,16.26322039,167.3,167.26,18.58]
[1747534640080,16.26322039,167.3,167.24,1.5489]
[1747534640081,16.26322039,167.3,167.24,20.1289]
[1747534640800,16.26322039,167.3,167.24,20.1489]
[1747534641870,16.26322039,167.3,167.24,1.5489]
[1747534642070,16.26322039,167.3,167.24,20.1289]
[1747534642490,10.28593408,167.29,167.24,1.5489]
[1747534643477,10.28593408,167.28,167.24,1.5489]
[1747534644497,14.94321578,167.3,167.24,1.5489]
[1747534644685,10.28593408,167.28,167.24,1.5489]
[1747534645899,5.97835834,167.27,167.24,1.5489]
[1747534648110,5.97835834,167.27,167.23,6.0451]
[1747534651411,5.97800095,167.28,167.23,6.0451]
[1747534655008,5.97800095,167.28,167.23,24.6451]
[1747534659399,6.58671939,167.29,167.23,24.6451]
[1747534662123,5.97800095,167.28,167.23,24.6451]
[1747534665430,14.94321578,167.3,167.23,24.6451]
[1747534665633,21.52993517,167.3,167.23,24.6451]
[1747534666128,5.97692905,167.31,167.23,30.62483409]
[1747534667223,5.97692905,167.31,167.24,3.38863017]
[1747534667429,5.97692905,167.31,167.24,9.36797799]
[1747534667729,12.56364844,167.31,167.24,9.36797799]
[1747534668602,12.56364844,167.31,167.25,3.38863017]
[1747534670639,5.97692905,167.31,167.25,9.36770322]
[1747534670822,12.56364844,167.31,167.25,9.36770322]
[1747534671931,12.56364844,167.31,167.26,3.38863017]
[1747534672729,12.56325997,167.33,167.26,9.36733892]
[1747534673421,12.56325997,167.33,167.27,3.38863017]
[1747534674031,6.58671939,167.32,167.27,3.38863017]
[1747534675019,5.97692905,167.31,167.27,3.38863017]
[1747534675407,5.97692905,167.31,167.25,7.55306889]
[1747534675408,5.97692905,167.31,167.26,3.38863017]
[1747534678035,5.97692905,167.31,167.26,9.36732413]
[1747534678535,5.97692905,167.31,167.27,3.38863017]
[1747534679537,5.97657183,167.32,167.27,3.38863017]
[1747534680123,5.97657183,167.32,167.26,3.38863017]
[1747534680533,5.97657183,167.32,167.26,9.36724549]
[1747534680732,1.55,167.38,167.29,18.64964886]
[1747534681032,5.97442944,167.38,167.31,18.64964886]
[1747534681245,25.56926599,167.39,167.31,44.64964886]
[1747534681427,25.56926599,167.39,167.33,18.64964886]
[1747534681624,25.56926599,167.39,167.35,18.64964886]
[1747534681825,25.56926599,167.39,167.36,18.58]
[1747534686220,25.56926599,167.39,167.36,26.07909823]
[1747534686541,5.97229398,167.44,167.38,5.97442944]
[1747534686736,1.5116,167.46,167.39,18.64964886]
[1747534686737,5.9715753,167.46,167.39,18.64964886]
[1747534686910,5.97086219,167.48,167.39,18.64964886]
[1747534687115,10.27499439,167.47,167.39,18.64964886]
[1747534688038,10.27499439,167.47,167.4,5.97371565]
[1747534688039,16.24645769,167.47,167.4,5.97371565]
[1747534688844,16.24645769,167.47,167.39,5.97398285]
[1747534689228,10.27499439,167.46,167.38,18.64964886]
[1747534689440,10.27499439,167.44,167.39,18.58]
[1747534690249,5.97264528,167.43,167.39,18.58]
[1747534691085,10.27499439,167.41,167.36,1.524]
[1747534691733,10.27499439,167.42,167.36,1.524]
[1747534692541,5.97335881,167.41,167.36,1.524]
[1747534692842,16.2483532,167.41,167.36,1.524]
[1747534693038,16.2483532,167.41,167.34,18.56]
[1747534693039,10.27499439,167.38,167.34,18.56]
[1747534693644,10.27499439,167.39,167.34,18.56]
[1747534694729,5.97442944,167.38,167.34,18.56]
[1747534696661,14.93339704,167.41,167.34,18.56]
[1747534696836,10.27499439,167.4,167.34,18.56]